Cogmind - Beta 15 @@@ ROGUE MODE // 2025.09.04 @ 21:52:25 Player: Mogwok Wargfriend Result: Destroyed by G-67 Veteran with Plasma Rifle Performance ------------- Evolutions (4) 2000 Regions Visited (5) 1000 Robots Destroyed (281) 1405 Value Destroyed (7182) 7182 Prototype IDs (12) 240 Alien Tech Used (0) 0 Bonus (665) 665 TOTAL SCORE: 12492 Bonus ------- High Alert Combat Kills 665 Cogmind --------- Core Integrity 0/850 Matter 289/300 Energy 288/290 System Corruption 28% Temperature Cool (37) Movement Treading (320) Ox2 Location -6/Factory Parts ------- > --- POWER (1) -------- Improved Deuterium Engine > --- PROPULSION (4) --- Improved Medium Treads > --- UTILITY (7) ------ High-capacity Storage Unit Enhanced Optical Array Improved Melee Analysis Suite Advanced Melee Analysis Suite Target Analyzer Improved Actuator Array > --- WEAPON (3) ------- Power Maul (fused) Axe Spear > --- INVENTORY (20) --- Nuclear Core Advanced Heat Sink Advanced Heat Sink Energy Well (350) Large Matter Pod (150) Structural Scanner Advanced Sensor Array Improved Signal Interpreter ECM Suite Layered Medium Armor Plating Layered Medium Armor Plating Gauss Rifle Gauss Rifle Precision Assault Rifle Coil Gun Coil Gun Improved Grenade Launcher Missile Launcher Maul Peak State ------------ > --- POWER ------------ Angular Momentum Engine > --- PROPULSION ------- Improved Medium Treads Armored Huge Wheel Electron Diverter > --- UTILITY ---------- High-capacity Storage Unit Enhanced Optical Array Advanced Sensor Array Improved Melee Analysis Suite Advanced Melee Analysis Suite Target Analyzer Layered Medium Armor Plating > --- WEAPON ----------- Gauss Rifle Maul Power Maul > --- INVENTORY -------- Improved Deuterium Engine Improved Medium Treads Improved Medium Treads Improved Medium Treads Wheel Wheel Advanced Heat Sink Energy Well Large Matter Pod Structural Scanner Improved Signal Interpreter Improved Actuator Array ECM Suite Improved Light Armor Plating Layered Medium Armor Plating Precision Assault Rifle Coil Gun Coil Gun Improved Grenade Launcher Missile Launcher [Rating: 72] Favorites ----------- Power Improved Ion Engine Engine Improved Ion Engine Power Core Light Nuclear Core Propulsion Wheel Treads Light Treads Leg Flexi-carbon Leg Wheel Wheel Hover Unit Gravmag System Flight Unit Electron Diverter Utility High-capacity Storage Unit Device Microactuators Storage High-capacity Storage Unit Processor Improved Melee Analysis Suite Hackware Hacking Suite Protection Improved Light Armor Plating Weapon Katana Energy Gun Small Laser Ballistic Gun Heavy Assault Rifle Ballistic Cannon Improved Light Cannon Launcher Mini Grenade Launcher Special Weapon Mining Laser Impact Weapon Heavy Mace Slashing Weapon Katana Piercing Weapon Spear Build | -11 -10 -9 -8 -7 -6 ------- Run | Yrd Mat Mat Mat Fac Fac Slots Evolved 8 | . . 2 2 2 2 Power . | . . . . . . Propulsion 2 | . . 1 . 1 . Utility 5 | . . 1 1 1 2 Weapon 1 | . . . 1 . . Parts Attached 162 | 7 5 16 44 20 70 Power 19 | 1 . 2 4 2 10 Engine 14 | 1 . 2 2 1 8 Core 5 | . . . 2 1 2 Reactor . | . . . . . . Propulsion 56 | 2 1 6 18 9 20 Treads 17 | 1 . 3 5 1 7 Leg 6 | . . . 3 1 2 Wheel 29 | 1 1 3 10 5 9 Hover 1 | . . . . 1 . Flight 3 | . . . . 1 2 Utility 55 | 2 3 4 10 7 29 Device 14 | 1 . 1 2 3 7 Storage 6 | 1 1 2 . . 2 Processor 14 | . . . 2 3 9 Hackware 2 | . . . 1 . 1 Protection 19 | . 2 1 5 1 10 Artifact . | . . . . . . Weapon 32 | 2 1 4 12 2 11 Energy Gun 3 | 1 . . . . 2 Energy Cannon . | . . . . . . Ballistic Gun 13 | 1 1 1 6 2 2 Ballistic Cannon 2 | . . 2 . . . Launcher 1 | . . . 1 . . Special Weapon 1 | . . 1 . . . Impact Weapon 3 | . . . 1 . 2 Slashing Weapon 7 | . . . 4 . 3 Piercing Weapon 2 | . . . . . 2 Special Melee Weapon . | . . . . . . Unidentified Prototypes 6 | . . . . 2 4 Parts Lost 66 | . 1 . 25 8 32 Power 12 | . . . 3 2 7 Propulsion 25 | . . . 10 5 10 Utility 18 | . 1 . 5 1 11 Weapon 11 | . . . 7 . 4 Highest Loss Streak 11 | . 1 . 11 2 8 To Critical Strikes . | . . . . . . Average Backups 17 | 4 11 14 18 19 18 Power 1 | . 1 1 1 1 1 Propulsion 3 | 2 3 3 3 1 3 Utility 6 | . 4 6 6 8 7 Weapon 5 | 1 2 4 6 7 6 Tool/Special . | . . . . . . Unused Backups 41 | . 3 5 9 6 18 Power 5 | . . . 1 2 2 Propulsion 7 | . 2 1 1 1 2 Utility 16 | . . 3 4 3 6 Weapon 13 | . 1 1 3 . 8 Tool/Special . | . . . . . . Average Slot Usage (%) 95 | . 99 99 94 97 90 Engine 6 | . 14 11 3 3 4 Core 1 | . . . 5 3 . Treads 11 | . 14 21 8 11 6 Leg 1 | . . . 2 . 1 Wheel 12 | . 14 11 14 15 10 Device 8 | . . 10 4 14 7 Storage 9 | . 14 11 9 7 8 Processor 11 | . . . 8 7 21 Protection 8 | . 13 11 8 7 5 Ballistic Gun 6 | . 24 11 6 . 1 Ballistic Cannon 2 | . . 10 1 . . Impact Weapon 3 | . . . . 6 6 Slashing Weapon 7 | . . . 17 15 6 Piercing Weapon 1 | . . . . . 2 Peak Build Rating 72 | 7 8 15 33 46 72 Average Rating 36 | 5 7 13 26 38 58 On Entrance 17 | . 7 8 14 30 45 Naked Turns . | . . . . . . Heaviest Build 78 | 12 30 58 64 68 78 Greatest Support 90 | 10 10 32 42 38 90 Greatest Overweight (x) 6 | 1 2 5 6 3 6 Average Overweight (x) 2 | . 1 3 2 2 1 Largest Inventory Capacity 20 | 8 15 20 20 20 20 Average Capacity 18 | 7 12 15 20 20 20 Most Carried 20 | 8 15 17 20 20 20 Average Carried 17 | 4 11 14 18 19 19 Final Capacity 20 | 8 15 20 20 20 20 Final Carried 20 | 8 15 17 20 20 19 Class Distribution -------------------- 45% | Gladiator 24% | Scavenger-Mutant 14% | Scavenger-Gladiator 12% | Mutant Dominant Class ---------------- Mutant | -10/Materials Scavenger-Mutant | -9/Materials Scavenger-Mutant | -8/Materials Gladiator | -7/Factory Gladiator | -6/Factory Resources | -11 -10 -9 -8 -7 -6 ----------- Run | Yrd Mat Mat Mat Fac Fac Matter Collected 4848 | 380 680 1163 1012 337 1276 Remotely . | . . . . . . Salvage Created 10502 | 178 1165 1457 2585 823 4294 Parts 517 | 14 85 110 168 32 108 Haulers Intercepted 13 | . 2 6 5 . . Recyclers Shooed 3 | . 2 . 1 . . Parts Field Recycled . | . . . . . . Retrieved Matter . | . . . . . . Parts Self-Destructed . | . . . . . . Prevented . | . . . . . . Kills | -11 -10 -9 -8 -7 -6 ------- Run | Yrd Mat Mat Mat Fac Fac Combat Hostiles Destroyed 149 | . 18 26 37 14 54 Melee 66 | . . . 21 11 34 Guns 35 | . 18 8 9 . . Cannons 21 | . . 18 3 . . AOE 7 | . . . 4 1 2 Classes Destroyed 18 | 3 6 2 2 1 4 Worker 41 | 2 5 8 15 1 10 Builder 16 | . 4 6 3 1 2 Tunneler 12 | 4 . . 6 2 . Hauler 13 | . 2 6 5 . . Recycler 24 | 1 3 2 5 3 10 Mechanic 4 | . . 2 1 . 1 Operator 10 | . 3 2 3 . 2 Watcher 12 | . 2 5 1 1 3 Swarmer 34 | . 6 8 12 5 3 Cutter 2 | . . . . . 2 Saboteur 1 | . . . . . 1 Grunt 65 | . 12 10 17 4 22 Brawler 1 | . . . . . 1 Duelist 3 | . . . 1 . 2 Protector 1 | . . . . . 1 Sentry 22 | . . 8 6 1 7 Hunter 9 | . . . 1 1 7 Programmer 11 | . . . . 3 8 Best Kill Streak 8 | 7 6 6 8 3 8 Combat Bots Only 4 | . 3 4 4 3 4 Max Kills in Single Turn 3 | 1 1 2 3 2 2 Gunslinging . | . . . . . . Exploded 2 | . . . 2 1 2 Melee 2 | . . . 1 2 2 Uniques/NPCs Destroyed . | . . . . . . Combat | -11 -10 -9 -8 -7 -6 -------- Run | Yrd Mat Mat Mat Fac Fac Hostile Shots Fired 1342 | . 75 113 237 168 749 Missed 407 | . 21 42 52 49 243 Hits 935 | . 54 71 185 119 506 Melee 14 | . . . . . 14 Projectile 921 | . 54 71 185 119 492 AOE 1 | . . . . 1 . Critical Strikes 30 | . 1 1 8 4 16 Damage Taken 12363 | . 570 790 2700 1621 6682 Core 1834 | . 92 114 374 386 868 Absorbed by Shields 4 | . . . . 4 . Redirected to Shielding 66 | . 9 32 25 . . Regen/Repaired (Parts) 351 | . 161 . . 86 104 Core Remaining (%) 62 | 100 63 71 32 44 . Volleys Fired 322 | 20 119 133 49 . 1 Largest 3 | 2 2 2 3 . 1 Hottest 100 | 60 60 100 86 . 28 Shots Fired 680 | 39 232 264 139 . 6 Gun 510 | 39 232 131 102 . 6 Cannon 164 | . . 130 34 . . Launcher 3 | . . . 3 . . Special 3 | . . 3 . . . Kinetic 629 | 20 207 261 136 . 5 Thermal 48 | 19 25 3 . . 1 Explosive 3 | . . . 3 . . Electromagnetic . | . . . . . . Robot Hit Streak 14 | 7 14 14 9 . 9 Robot Miss Streak 5 | 2 5 5 3 . 1 Penetration Max . | . . . . . . Secondary Targets 4 | . 2 . 2 . . Max Gunslinging Chain 1 | . 1 . 1 . . Shots Hit Robots 784 | 26 140 159 188 51 220 Core Hits 284 | 8 60 66 81 13 56 Critical Kills 5 | . 1 . . . 4 Critical Parts Destroyed 39 | . 1 . 3 5 30 Critical Strikes 79 | . 2 3 15 7 52 Destroy 4 | . 2 . 2 . . Blast 3 | . . 3 . . . Smash 40 | . . . 1 5 34 Sever 30 | . . . 12 2 16 Impale 2 | . . . . . 2 Melee Attacks 629 | . . . 157 126 346 Impact 287 | . . . 1 85 201 Slashing 315 | . . . 156 41 118 Piercing 27 | . . . . . 27 Sneak Attacks 83 | . . . 40 12 31 Combat Hostiles 6 | . . . 3 . 3 Follow-up Attacks 95 | . . . 18 15 62 Damage Inflicted 24518 | 313 1827 2940 6470 2555 10413 Guns 4466 | 313 1821 1207 1085 . 40 Cannons 2122 | . . 1733 389 . . Explosions 906 | . . . 486 . 420 Melee 17010 | . . . 4510 2555 9945 Ramming 14 | . 6 . . . 8 Kinetic 6175 | 159 1581 2940 1474 . 21 Thermal 413 | 154 240 . . . 19 Explosive 906 | . . . 486 . 420 Electromagnetic . | . . . . . . Impact 8533 | . . . 54 2083 6396 Slashing 8073 | . . . 4456 472 3145 Piercing 404 | . . . . . 404 Highest Corruption 28 | . . 2 . 4 28 Average Corruption 17 | . . 2 . 2 21 Corruption Purged . | . . . . . . Corruption Blocked . | . . . . . . Effects 260 | . . 1 . 23 236 Message Errors 71 | . . . . 7 64 Matter Fused 58 | . . . . 7 51 Heat Flow Errors 29 | . . . . 4 25 Energy Discharges 33 | . . . . 2 31 Parts Rejected 4 | . . . . 1 3 Parts Fused 4 | . . . . . 4 Data Loss (minor) 31 | . . . . 1 30 Data Loss (major) 11 | . . . . 1 10 Misfires 6 | . . 1 . . 5 Alerts 4 | . . . . . 4 Misdirections 9 | . . . . . 9 Overload Shots . | . . . . . . Overflow Damage 4240 | . . 6 583 749 2902 Projectiles 6 | . . 6 . . . Explosions 29 | . . . 29 . . Melee 4205 | . . . 554 749 2902 Knockbacks 45 | . . 9 7 5 24 Impact 29 | . . . . 5 24 Kinetic 16 | . . 9 7 . . Secondary . | . . . . . . Self-Inflicted Damage 217 | . 3 . 42 . 172 Shots 3 | . . . 1 . 2 Rammed 3 | . 1 . . . 2 Targets Rammed 3 | . 1 . . . 2 Kicked . | . . . . . . Crushed . | . . . . . . Highest Temperature 269 | . 127 72 110 187 269 Average Temperature 57 | . 35 14 29 91 101 Received Heat Transfer 3427 | . 255 162 1341 270 1399 Effects 1 | . . . . . 1 Energy Bleed 1 | . . . . . 1 Siege Activations . | . . . . . . Martial Activations . | . . . . . . Shielding Activations . | . . . . . . Robots Disrupted . | . . . . . . Combat Hostiles . | . . . . . . Robots Corrupted 33 | . . . . 3 30 Combat Hostiles 20 | . . . . 2 18 Parts Fried 69 | . . . . 12 57 Impact Corruptions 123 | . . . 2 24 97 Robots Melted . | . . . . . . Combat Hostiles . | . . . . . . Parts Melted 1 | . 1 . . . . Heat Transferred 937 | 350 550 . . . 37 Parts Sabotaged 2 | . . . . . 2 Parts Stolen . | . . . . . . Parts Stripped . | . . . . . . Power Chain Reactions . | . . . . . . Alert | -11 -10 -9 -8 -7 -6 ------- Run | Yrd Mat Mat Mat Fac Fac Maximum Alert Level 3 | . . 1 3 2 3 Low Security (%) 53 | 100 100 89 15 40 44 Level 1 20 | . . 10 28 59 13 Level 2 13 | . . . 33 . 20 Level 3 12 | . . . 22 . 21 Level 4 . | . . . . . . Level 5 . | . . . . . . High Security . | . . . . . . Max Security . | . . . . . . Peak Influence 1072 | 10 179 385 767 402 1072 Initial 347 | . . 68 157 347 192 Average 297 | 2 91 128 445 240 395 Influence Increases 5935 | 35 611 967 1498 724 2100 Destroy 0b10 Robot/C 3040 | . 360 520 740 280 1140 Destroy 0b10 Robot/NC 665 | 35 95 155 195 40 145 Destroy Leader 810 | . 88 162 182 82 296 Successful Hack 204 | . 33 28 4 64 75 Disable Machine 465 | . . 60 105 225 75 Destroy Structure 151 | . 5 12 32 18 84 Partial Spotted 30 | . . . 15 . 15 Lose Combat Pursuer 570 | . 30 30 225 15 270 Influence Decreases 4863 | 35 448 755 1108 1096 1421 Entered New Map 932 | . . 95 218 418 201 Time Decay 3141 | 35 438 660 640 598 770 Lost Part 660 | . 10 . 250 80 320 Lost Ally 130 | . . . . . 130 Squads Dispatched 43 | . 4 4 7 11 17 Investigation 14 | . 1 3 1 4 5 Extermination 13 | . . . . 4 9 Reinforcement 12 | . 3 1 3 3 2 Assault 2 | . . . 1 . 1 Garrison 2 | . . . 2 . . Intercept . | . . . . . . Searches Triggered . | . . . . . . Construction Impeded . | . . . . . . Haulers Reinforced 2 | . . . . 2 . Active Scanning Responses . | . . . . . . Cargo Convoy Interrupts 1 | . . . . . 1 Stealth | -11 -10 -9 -8 -7 -6 --------- Run | Yrd Mat Mat Mat Fac Fac Distress Signals 10 | . 4 . 3 . 3 Communications Jammed . | . . . . . . Distress Signals . | . . . . . . Times Spotted 243 | . 34 39 66 24 80 Peak Tracking Total 6 | . 5 4 6 4 6 Tactical Retreats 32 | . 2 2 11 3 14 Traps | -11 -10 -9 -8 -7 -6 ------- Run | Yrd Mat Mat Mat Fac Fac Traps Triggered 13 | . . 3 1 4 5 Indirectly . | . . . . . . Trap Hack Attempts . | . . . . . . Triggered . | . . . . . . Disarmed . | . . . . . . Reprogrammed . | . . . . . . Reused . | . . . . . . Traps Extracted . | . . . . . . Installed . | . . . . . . Triggered . | . . . . . . Machines | -11 -10 -9 -8 -7 -6 ---------- Run | Yrd Mat Mat Mat Fac Fac Machines Disabled 31 | . . 4 7 15 5 Max in Single Turn 1 | . . 1 1 1 1 Garrison Access 2 | . . . 1 1 . Machines Repaired . | . . . . . . Machines Dismantled . | . . . . . . Machines Sabotaged . | . . . . . . Overloaded Fab Kills . | . . . . . . Hacking | -11 -10 -9 -8 -7 -6 --------- Run | Yrd Mat Mat Mat Fac Fac Machines Accessed 66 | . 10 10 9 13 24 Terminals 34 | . 7 7 4 6 10 Fabricators 5 | . . . . 1 4 Repair Stations 7 | . 1 . . 2 4 Recycling Units 11 | . 2 2 2 1 4 Scanalyzers 6 | . . 1 2 2 1 Garrison Access 3 | . . . 1 1 1 Total Hacks 188 | . 35 31 31 36 55 Successful 87 | . 22 14 18 11 22 Failed 100 | . 13 16 13 25 33 Catastrophic 26 | . 2 4 2 4 14 Database Lockouts 1 | . . 1 . . . Manual 95 | . 13 24 9 22 27 Terminals 90 | . 23 23 9 16 19 Fabricators 14 | . . . . 1 13 Repair Stations 18 | . 5 . . 7 6 Recycling Units 31 | . 7 6 5 3 10 Scanalyzers 28 | . . 2 13 8 5 Garrison Access 7 | . . . 4 1 2 Terminal Hacks 22 | . 11 7 2 1 1 Part Schematic 1 | . . . . . 1 Robot Analysis 5 | . 3 2 . . . Prototype ID Bank 4 | . 2 2 . . . Branch Access Points 2 | . 1 1 . . . Emergency Access Points 1 | . . . 1 . . Alert Level 3 | . 1 . 1 1 . Locate Traps 3 | . 3 . . . . Hauler Manifests 1 | . . 1 . . . Registered Components 1 | . . 1 . . . Zone Layout 1 | . 1 . . . . Fabricator Hacks 4 | . . . . . 4 Network Status 2 | . . . . . 2 Load Schematic 1 | . . . . . 1 Build 1 | . . . . . 1 Repair Station Hacks 7 | . 4 . . 1 2 Scan Component 4 | . 2 . . 1 1 Repair 3 | . 2 . . . 1 Recycling Unit Hacks 10 | . 3 3 2 . 2 Report Inventory 6 | . 2 2 1 . 1 Retrieve Components 4 | . 1 1 1 . 1 Scanalyzer 18 | . . . 10 4 4 Insert Component 8 | . . . 4 2 2 Analyze 10 | . . . 6 2 2 Garrison Access Hacks 2 | . . . 1 1 . Seal Access 2 | . . . 1 1 . Unauthorized Hacks 24 | . 4 4 3 4 9 Terminals 11 | . 2 3 2 3 1 Assimilate 1 | . . . . . 1 Botnet 9 | . 2 3 2 2 . Operators 1 | . . . . 1 . Fabricators 6 | . . . . . 6 Liberate 3 | . . . . . 3 Fabnet 3 | . . . . . 3 Repair Stations 1 | . . . . 1 . Patch 1 | . . . . 1 . Recycling Units 6 | . 2 1 1 . 2 Reject 6 | . 2 1 1 . 2 Scanalyzers . | . . . . . . Garrison Access . | . . . . . . Data Cores Recovered 1 | . . . . . 1 Used . | . . . . . . Hacking Detections 60 | . 9 8 8 12 23 Full Trace Events 9 | . 1 1 . 3 4 Feedback Events . | . . . . . . Feedback Blocked . | . . . . . . Robot Schematics Acquired . | . . . . . . Robots Built . | . . . . . . Authchips . | . . . . . . Time . | . . . . . . Total Robot Build Rating . | . . . . . . Part Schematics Acquired 7 | . . . 3 1 3 Parts Built 2 | . . . . . 2 Authchips 1 | . . . . . 1 Time 73 | . . . . . 73 Total Part Build Rating 6 | . . . . . 6 Parts Repaired 3 | . 2 . . . 1 Time 84 | . 52 . . . 32 Parts Recycled . | . . . . . . Recycled Matter . | . . . . . . Retrieved Matter . | . . . . . . Retrieved Components 33 | . 10 4 10 . 9 Parts Scanalyzed 7 | . . . 3 2 2 Part Schematics Acquired 6 | . . . 3 1 2 Parts Damaged 1 | . . . 1 . . Bothacking | -11 -10 -9 -8 -7 -6 ------------ Run | Yrd Mat Mat Mat Fac Fac Used RIF Installer . | . . . . . . Robots Hacked . | . . . . . . Non-combat . | . . . . . . Combat . | . . . . . . Robot Hacks Applied . | . . . . . . Relay Couplers Released . | . . . . . . Fabnet Peak Effective % . | . . . . . . Robots Rewired . | . . . . . . Allies Hacked . | . . . . . . Hacks Repelled . | . . . . . . Allies | -11 -10 -9 -8 -7 -6 -------- Run | Yrd Mat Mat Mat Fac Fac Total Allies 7 | . . . . . 7 Largest Group 3 | . . . . . 3 Highest-Rated Group 87 | . . . . . 87 Highest-Rated Ally 29 | . . . . . 29 Total Orders . | . . . . . . Ally Attacks 46 | . . . . . 46 Total Damage 591 | . . . . . 591 Kills 4 | . . . . . 4 Allies Corrupted . | . . . . . . Allies Melted . | . . . . . . Intel | -11 -10 -9 -8 -7 -6 ------- Run | Yrd Mat Mat Mat Fac Fac Active Infowar (turns) 8030 | 26 34 2483 487 374 4626 Optics 4491 | . . . . . 4491 Sensors 4776 | . . 2483 199 37 2057 Terrain 288 | . . . 288 . . Seismic 60 | 26 34 . . . . ECM 337 | . . . . 337 . Robot Analysis Total 5 | . 3 2 . . . Derelict Logs Recovered . | . . . . . . Drone Launches . | . . . . . . Drone Recoveries . | . . . . . . Exploration | -11 -10 -9 -8 -7 -6 ------------- Run | Yrd Mat Mat Mat Fac Fac Turns Passed 13538 | 161 1343 2489 2282 1905 5358 Spaces Moved 8437 | 94 849 1428 1224 1368 3474 Core 7 | 7 . . . . . Treads 68 | . . . 67 . 1 Legs 45 | . . . 45 . . Wheels 8317 | 87 849 1428 1112 1368 3473 Hover . | . . . . . . Flight . | . . . . . . Fastest Speed 50 | 50 95 110 101 105 105 Average Speed 120 | 88 104 127 130 119 119 Slowest Speed 540 | 95 110 155 540 125 170 Overloaded Moves . | . . . . . . Propulsion Burnouts . | . . . . . . Robots Hopped . | . . . . . . Potential Cave-ins . | . . . . . . Cave-ins Triggered . | . . . . . . Exploration Rate (%) 58 | 4 97 89 69 32 62 Regions Visited 5 Branch Regions . Pre-discovered Areas . | . . . . . . Known Exits Taken 1 | . . . . 1 . Unknown Exits Taken 4 | 1 1 1 1 . . Scrap Searched . | . . . . . . Spaces Dug 73 | . . 3 10 18 42 Terrain Destroyed 154 | . . 9 35 18 92 Melee 70 | . . . 10 18 42 Projectile 9 | . . 9 . . . AOE 75 | . . . 25 . 50 Terrain Rammed . | . . . . . . Walls Destroyed . | . . . . . . Machines Disabled . | . . . . . . Actions | -11 -10 -9 -8 -7 -6 --------- Run | Yrd Mat Mat Mat Fac Fac Total 10550 | 128 1075 1840 1647 1560 4300 Wait 816 | . 82 236 135 4 359 Move 8432 | 93 848 1427 1223 1367 3474 Hop . | . . . . . . Pick Up 114 | 8 11 10 37 14 34 Fast Attach 82 | 7 4 1 14 14 42 Attach 63 | . 1 3 24 7 28 Detach 19 | . . 1 5 1 12 Swap 64 | . 2 13 13 9 27 Drop 109 | . 7 16 23 20 43 Fire 322 | 20 119 133 49 . 1 Melee 470 | . . . 124 92 254 Ram 3 | . 1 . . . 2 Kick . | . . . . . . Crush . | . . . . . . Escape Stasis 56 | . . . . 32 24 Rewire . | . . . . . . Trap . | . . . . . . Miscellaneous . | . . . . . . Route ------- -11/Scrapyard -10/Materials (discovered 5 exits: *Mat x3 / *Min x2) -9/Materials (discovered 3 exits: *Mat x2 / *Min) -8/Materials (discovered 2 exits: *Fac x2) -7/Factory (discovered 3 exits: *Fac x2 / [*Sto]) -6/Factory (discovered 3 exits: [*Fac] / *Low / *Ext) History --------- Turn | Location | Event 4 | -11/Scrapyard | Discovered new exit (range 15) 162 | -11/Scrapyard | Entered Materials 310 | -10/Materials | Build established: Mutant 356 | -10/Materials | Discovered new exit (range 16) 389 | -10/Materials | Discovered new exit (range 12) 770 | -10/Materials | Discovered new exit (range 13) 961 | -10/Materials | Identified exit to Mines 1019 | -10/Materials | Repaired Assault Rifle 1047 | -10/Materials | Repaired Assault Rifle 1124 | -10/Materials | Discovered new exit (range 8) 1420 | -10/Materials | Discovered new exit (range 16) 1505 | -10/Materials | Entered another Materials area 1505 | -9/Materials | Evolved 2 slots: Propulsion x1, Utility x1 1896 | -9/Materials | Build established: Scavenger-Mutant 3008 | -9/Materials | Identified exit to Mines 3008 | -9/Materials | Central database locked down 3091 | -9/Materials | Discovered new exit (range 8) 3960 | -9/Materials | Discovered new exit (range 12) 3994 | -9/Materials | Entered another Materials area 3994 | -8/Materials | Evolved 2 slots: Utility x1, Weapon x1 4440 | -8/Materials | Garrison activated, responded to threat 4552 | -8/Materials | Lost 11 parts (2p3n2u4w) 4599 | -8/Materials | Core integrity fell below 50% 4680 | -8/Materials | Discovered new exit (range 13) 5594 | -8/Materials | First assault squad dispatched 6147 | -8/Materials | Discovered new exit (range 4) 6276 | -8/Materials | Entered Factory 6276 | -7/Factory | Evolved 2 slots: Propulsion x1, Utility x1 6540 | -7/Factory | Build established: Gladiator 7161 | -7/Factory | Discovered new exit (range 5) 7170 | -7/Factory | Identified exit to Factory 7550 | -7/Factory | Core integrity fell below 50% 7908 | -7/Factory | Discovered new exit (range 15) 8104 | -7/Factory | Discovered exit to Factory (range 4) 8181 | -7/Factory | Entered another Factory area 8181 | -6/Factory | Evolved 2 slots: Utility x2 8380 | -6/Factory | Discovered new exit (range 5) 8464 | -6/Factory | System corruption reached 10% 8545 | -6/Factory | Lost 8 parts (2p2n3u1w) 9451 | -6/Factory | Fabricated Katana (x2) 9804 | -6/Factory | Lost 6 parts (1p2n3u) 10289 | -6/Factory | Identified exit to Lower Caves 10491 | -6/Factory | Discovered new exit (range 10) 10504 | -6/Factory | Identified exit to Extension 10636 | -6/Factory | Cargo convoy interrupted 11059 | -6/Factory | Core integrity fell below 50% 11158 | -6/Factory | Lost 3 parts (3w) 11987 | -6/Factory | Found Prototype Device 11987 | -6/Factory | Identified Adv. Kinecellerator 12247 | -6/Factory | Core integrity fell below 20% 12654 | -6/Factory | Repaired Maul 12946 | -6/Factory | Build established: Scavenger-Gladiator 13431 | -6/Factory | First assault squad dispatched 13476 | -6/Factory | Discovered new exit (range 22) 13539 | -6/Factory | Destroyed by G-67 Veteran with Plasma Rifle Last Messages --------------- 13530_ Wheel destroyed. 13533_ Destroyed Cesium-ion Thruster. 13533_ E-15 Imp system corrupted by crushing effect. 13533_ Manufacturing Mainframe disabled. 13534_ System corrupted: Heat flow error (+121). 13535_ Imp. Light Armor Plating blown off. 13535_ Imp. Medium Treads blown off. 13535_ E-15 Imp destroyed. 13536_ Acquired Imp. Light Armor Plating. 13536_ Imp. Medium Treads destroyed. 13536_ Imp. Light Armor Plating destroyed. 13538_ Destroyed Microactuators. 13538_ L-41 Fighter system corrupted by crushing effect. 13538_ Spear follow-up attack on L-41 Fighter. 13539_ L-41 Fighter system terminally corrupted. 13539_ Core Shielding fried. 13539_ Imp. Melee Analysis Suite fried. 13539_ Critical hit (Burn: +50). Map ----- +----------------------------------------------------+ | #?????????????#####T ###??????????????????????? | | #????########## ???????????????????????? | | ###### # ????????????????????????? | | + """" # ??????????????????????????? | | ###### """" # #######?????????????????????? | | #????# """" # # #?????????????????????? | | #????# """" + + #?????????????????????? | | #####???# """" # # """#?????????????????????? | | #???# """" # # """#?????????????????????? | | #???# """" # # """#?????????????????????? | | #???# # #= ""#?????????????????????? | | #???########## # ""#?????????????????????? | | """ ############## # +?????????????????????? | | """ # """" # #######?????????????????????? | | """^# """ ""R" # #?###########???????????????? | | + """ "" " # #?# +???????????????? | | ##### """ =+ #?# """" #???????????????? | | ????# [%#% #?# """" #???????????????? | | ????############## ### """"u#???????????????? | | ???????????????# # """" #???????????????? | | ???????????????# # ##############??? | | ################ # """" # #??? | | %% T /g """" # " " " " " #??? | | ####### #g """" # " " " " " #### | | #?????# #l%/ """" # " " " " " + | | ######+#+#?????# # @% # " " " " " # | | ##????? ?????######### = """" # " " " " " + | | #????? ?????????????# """u# " " " " " # | | #????"""" ????????????# """" # " " " " " # | | #????"""" ????????????# """" # " " " " " #### | | #???""""" #???????????# # " " " " " #??? | | !#???""""" #???????????########### #??? | | +?? #?????????????????????# #??? | | #?? #?????????????????????##############??? | | #?##+##+###?????????????????????????????????????? | | #???????????????????????????????????????????????? | | ##???????????????????????????????????????????????? | | #????????????????????????????????????????????????? | | #????????????????????????????????????????????????? | | #????????????????????????????????????????????????? | | ?????????????????????????????????????????????????? | | ?????????????????????????????????????????????????? | | ?????????????????????????????????????????????????? | | ?????????????????????????????????????????????????? | | ?????????????????????????????????????????????????? | | ?????????????????????????????????????????????????? | | ?????????????????????????????????????????????????? | | ?????????????????????????????????????????????????? | | ?????????????????????????????????????????????????? | | ?????????????????????????????????????????????????? | +----------------------------------------------------+ Best States ------------- Heat Dissipation 56 Energy Generation 18 Energy Capacity 650 Matter Stores 300 Matter Capacity 300 Sight Range 22 Robot Scan Range 16 Terrain Scan Range 16 Terrain Scan Density 10 ECM Strength 1 Armor Coverage 375 Core Shielding 20 Weapon Shielding 33 Melee Speed Boost 40 Evasion (%) 44 Targeting Accuracy 8 Melee Accuracy 14 Target Analysis 5 Recoil Reduction 2 Offensive Hacking 10 Authchip Count 1 Item Schematics ----------------- Imp. Light Cannon | -8/Materials | Scanalyzed Katana | -8/Materials | Scanalyzed Arm. Treads | -8/Materials | Scanalyzed Imp. Melee Analysis Suite | -7/Factory | Scanalyzed Hyp. Gauss Cannon | -6/Factory | Hacked Lyr. Medium Armor Plating | -6/Factory | Scanalyzed Cld. Cesium-ion Thruster | -6/Factory | Scanalyzed Robot Schematics ------------------ None Fabricated ------------ Katana | x2 | -6/Factory | Authchip Repaired ---------- Assault Rifle | 10% | -10/Materials Assault Rifle | 29% | -10/Materials Maul | 13% | -6/Factory Alien Tech Used ----------------- None Achievements -------------- None Challenges ------------ None Game ------ Seed CooledBottomlessSpiker Manual? 0 Play Time 01:49:21 Cumulative 372.1 hours Start 2025.09.02 @ 22:21:19 End 2025.09.04 @ 21:52:25 Sessions 5 Manual Loads 0 Difficulty Rogue Special Mode None Game No. 311 Rogue 311 Adventurer 0 Explorer 0 Win Type - Total 2 Types 2/0/0/0/0/0/0/0/0/0 Lore% 80 Gallery% 68 Achievement% 55 Wizard Run 0 Options --------- Layout 2 ASCII 1 Keyboard 1 Movement Numpad Keybinds 0 Fullscreen 2 Font 32/TamsynBold Map View 50x44 Zoom Use 0% Tactical HUD 1 Map Filters NONE Filters NONE Steam 1 RUN: b9f7e06d-9b84-4cd5-aa3e-10bcf5a58c63